bitfinex/quotes_ETHUSD_20250731
["timestamp","ask_amount","ask_price","bid_price","bid_amount"]
[1753980746402,0.4638,3806.3,3805.8,6.76656844]
[1753980746566,0.4638,3806.3,3805.8,6.89776844]
[1753980746766,0.4638,3806.3,3805.8,7.37836844]
[1753980746961,0.4984,3806.6,3805.8,7.37836844]
[1753980746962,2.62696521,3806.7,3805.8,7.5464311]
[1753980747167,0.04,3806.9,3805.8,11.0270311]
[1753980747598,0.5038,3806.9,3805.8,11.0270311]
[1753980747803,0.24425574,3806.8,3805.8,11.0270311]
[1753980748013,1e-08,3805.9,3805.8,11.0270311]
[1753980748906,0.04,3806.9,3806.8,2.62687821]
[1753980749116,0.04,3806.9,3806.8,7.90106272]
[1753980751981,0.04,3806.9,3806.8,19.73806851]
[1753980753921,0.04,3806.9,3806.8,23.99806851]
[1753980754918,0.04,3806.9,3806.8,11.02406272]
[1753980755118,0.04,3806.9,3806.8,15.15906272]
[1753980756021,0.04,3806.9,3806.8,15.15806272]
[1753980757785,0.04,3806.9,3806.8,15.15706272]
[1753980759207,1.0022,3806.9,3806.8,8.5242]
[1753980760133,1.0022,3806.9,3806.8,11.15107821]
[1753980760292,0.5038,3806.9,3806.8,8.5242]
[1753980760492,1.0022,3806.9,3806.8,4.3912]
[1753980760796,3.62900921,3806.9,3806.8,4.3912]
[1753980760995,3.62900921,3806.9,3806.8,8.5232]
[1753980761196,1.36510092,3806.9,3806.3,3.4412]
[1753980761430,2.6271173,3806.5,3806.4,4.132]
[1753980761733,0.9622,3806.5,3806.4,4.132]
[1753980762027,3.58935263,3806.5,3806.4,4.132]
[1753980762523,0.9622,3806.5,3805.3,3.0]
[1753980762724,0.9622,3806.4,3805.7,2.62763743]
[1753980762882,0.9622,3806.3,3805.8,4.132]
[1753980763086,0.9622,3806.2,3805.8,4.132]
[1753980763284,2.66682036,3806.9,3805.9,0.4132]
[1753980763523,0.9622,3806.6,3806.1,2.62730487]
[1753980763709,0.9622,3806.6,3806.2,7.5732]
[1753980763897,2.62722328,3806.3,3806.2,3.4412]
[1753980764099,3.58942328,3806.3,3806.2,7.5732]
[1753980764716,3.58942328,3806.3,3806.2,3.4412]
[1753980765030,3.58942328,3806.3,3806.2,7.5732]
[1753980765326,0.9622,3806.3,3806.2,7.5732]
[1753980765526,0.4984,3806.8,3806.2,7.5732]
[1753980765691,2.62702801,3806.6,3806.2,7.5732]
[1753980765891,3.58922801,3806.6,3806.2,7.5732]
[1753980766224,3.12549038,3806.5,3806.2,7.5732]
[1753980766386,0.9277,3806.5,3806.2,7.5732]
[1753980766585,2.62695392,3806.7,3806.2,7.5732]
[1753980767025,3.09425392,3806.7,3806.2,7.5732]
[1753980767209,2.62706491,3806.6,3806.3,3.4412]
[1753980767411,3.09436491,3806.6,3806.4,4.131]
[1753980767928,3.05638524,3806.5,3806.4,4.131]
[1753980768093,3.52368524,3806.5,3806.4,4.131]
[1753980768835,0.8966,3806.5,3806.4,4.131]
[1753980769240,2.62715426,3806.4,3806.3,3.4412]
[1753980769456,3.52375426,3806.4,3806.3,3.4412]
[1753980769610,4.13883821,3806.4,3806.3,7.5722]
[1753980769815,4.13883821,3806.4,3806.3,4.131]
[1753980770342,4.13883821,3806.4,3804.9,0.4566]
[1753980770343,2.62722328,3806.3,3805.3,3.4412]
[1753980770569,2.62754124,3805.9,3805.4,7.5722]
[1753980770855,2.62754124,3805.9,3804.7,3.0]
[1753980770856,0.8966,3805.8,3804.7,3.0]
[1753980771045,0.4673,3805.7,3804.8,6.75925643]
[1753980771244,2.62784586,3805.4,3804.8,6.75925643]
[1753980771428,2.62784586,3805.4,3804.8,4.131]
[1753980771623,2.62812089,3805.0,3804.9,4.13]
[1753980771808,0.4673,3805.4,3805.3,0.1312]
[1753980772011,2.62784464,3805.4,3805.3,4.13]
[1753980772213,2.62781167,3805.5,3805.3,4.2612]
[1753980772409,2.62784464,3805.4,3805.3,4.2612]
[1753980773048,3.52444464,3805.4,3805.3,4.2612]
[1753980773249,3.77010591,3805.4,3805.3,4.2612]
[1753980774250,3.77010591,3805.4,3805.3,4.13]
[1753980775049,2.87350591,3805.4,3805.3,4.13]
[1753980775411,0.4673,3805.7,3805.3,4.13]
[1753980775611,0.4673,3805.7,3805.3,4.2612]
[1753980776146,2.62784464,3805.4,3805.3,4.2612]
[1753980776352,3.52444464,3805.4,3805.3,4.2612]
[1753980776853,2.62784464,3805.4,3805.3,4.2612]
[1753980777012,2.62784464,3805.4,3805.3,4.2622]
[1753980777416,3.09514464,3805.4,3805.3,0.1322]
[1753980777653,3.52444464,3805.4,3805.3,4.2622]
[1753980778539,3.52444464,3805.4,3805.3,0.001]
[1753980778739,4.1396603,3805.4,3805.3,0.001]
[1753980780250,2.62784464,3805.4,3805.3,0.001]
[1753980780567,2.62784464,3805.4,3805.3,0.1322]
[1753980785061,2.62782752,3805.5,3805.3,0.1322]
[1753980785568,0.24581061,3805.4,3805.3,0.1322]
[1753980785769,2.62766651,3805.7,3805.3,0.1322]
[1753980785968,0.24584873,3805.6,3805.3,0.1322]
[1753980786133,0.24584873,3805.6,3805.4,0.9203]
[1753980786330,0.24584873,3805.6,3805.5,4.129]
[1753980786532,0.24584873,3805.6,3805.5,4.5856]
[1753980786726,2.62770653,3805.6,3805.5,4.7168]
[1753980786945,2.62770653,3805.6,3805.5,4.2602]
[1753980787781,2.87345559,3805.6,3805.5,4.2602]
[1753980788236,2.87345559,3805.6,3805.3,0.001]
[1753980788237,2.62784464,3805.4,3805.3,0.001]
[1753980788431,3.77005559,3805.6,3805.3,0.001]
[1753980788432,2.62777838,3805.5,3805.3,4.129]
[1753980788632,2.62761775,3805.8,3805.4,0.1312]
[1753980788839,0.24570005,3805.7,3805.5,0.4566]
[1753980789241,2.62752311,3805.9,3805.6,0.1312]
[1753980789577,2.87325078,3805.8,3805.7,4.128]
[1753980790543,0.24568234,3805.8,3805.7,4.128]
[1753980790958,0.55,3806.1,3805.7,4.128]
[1753980791276,2.62756221,3805.9,3805.7,4.5846]
[1753980791578,3.17737508,3806.1,3805.7,4.5846]
[1753980791579,2.62756844,3805.8,3805.7,4.5846]
[1753980791779,2.62756844,3805.8,3805.7,4.128]
[1753980792359,2.62749481,3806.0,3805.7,4.128]
[1753980792553,6.75503459,3806.6,3805.7,4.5846]
[1753980792554,0.4673,3806.6,3805.7,4.5846]
[1753980792788,2.62735012,3806.2,3805.8,1.0515]
[1753980793010,2.62735012,3806.2,3805.9,0.4566]
[1753980793165,2.7583568,3806.4,3806.0,4.127]
[1753980793359,0.1312,3806.4,3806.1,0.4566]
[1753980793864,0.8966,3806.7,3806.3,0.1312]
[1753980794063,2.62708524,3806.5,3806.4,4.127]
[1753980794399,0.24556685,3806.5,3806.4,4.127]
[1753980794763,0.002,3806.8,3806.4,5.0473]
[1753980794962,0.002,3806.8,3806.5,0.4566]
[1753980795204,0.002,3806.8,3806.6,0.1312]
[1753980795377,0.002,3806.8,3806.7,4.126]
[1753980795782,2.62887821,3806.8,3806.7,4.126]
[1753980796099,0.002,3806.8,3806.7,4.126]
[1753980797785,0.002,3806.8,3806.7,4.5862]
[1753980798670,0.002,3806.8,3806.7,11.89446716]
[1753980798869,0.002,3806.8,3806.7,11.24524722]
[1753980800298,0.002,3806.8,3806.7,11.43872687]
[1753980800876,0.002,3806.8,3806.7,7.31272687]
[1753980801077,0.002,3806.8,3806.7,10.32334722]
[1753980801308,0.002,3806.8,3806.7,12.12460488]
[1753980801811,0.002,3806.8,3806.7,12.78203752]
[1753980803322,0.002,3806.8,3806.7,15.78203752]
[1753980805018,1e-08,3806.8,3806.7,15.78203752]
[1753980805413,0.002,3807.2,3807.1,5.62667121]
[1753980805614,0.002,3807.2,3807.1,23.41590728]
[1753980805802,0.002,3807.2,3807.1,24.33580728]
[1753980806112,0.002,3807.2,3807.1,24.46700728]
[1753980807115,0.04,3807.9,3807.8,2.62618835]
[1753980807283,0.04,3807.9,3807.8,6.74818835]
[1753980807483,0.04,3807.9,3807.8,8.08473517]
[1753980808322,0.04,3807.9,3807.8,8.54443517]
[1753980808622,0.04,3807.9,3807.8,11.54443517]
[1753980808819,0.04,3808.9,3808.8,2.62549884]
[1753980809024,0.04,3808.9,3808.8,6.87769884]
[1753980809182,0.04,3808.9,3808.8,7.82802679]
[1753980809384,0.04,3808.9,3808.8,8.61672679]
[1753980809613,0.04,3808.9,3808.8,5.07132795]
[1753980810441,0.04,3808.9,3808.8,8.15702679]
[1753980810600,0.04,3808.9,3808.8,5.07132795]
[1753980811678,0.04,3808.9,3808.8,7.69682679]
[1753980811980,0.04,3808.9,3808.8,8.15702679]
[1753980812204,0.04,3808.9,3808.8,5.99122795]
[1753980812732,0.04,3808.9,3808.8,8.15702679]
[1753980812938,0.04,3808.9,3808.8,5.53152795]
[1753980813234,0.04,3808.9,3808.8,5.07132795]
[1753980813526,0.04,3808.9,3808.8,7.69682679]
[1753980813708,0.04,3808.9,3808.8,8.61672679]
[1753980814512,0.04,3808.9,3808.8,8.51252795]
[1753980814809,0.04,3808.9,3808.8,11.13802679]
[1753980815130,0.04,3808.9,3808.8,11.59822679]
[1753980815997,0.04,3808.9,3808.8,8.97272795]
[1753980816187,0.04,3808.9,3808.8,11.59822679]
[1753980817224,0.04,3808.9,3808.8,12.05792679]
[1753980819388,0.04,3808.9,3808.8,11.72942679]
[1753980819589,0.04,3808.9,3808.8,99.41912679]
[1753980820693,0.042,3808.9,3808.8,99.41912679]
[1753980821401,0.042,3808.9,3808.8,98.95942679]
[1753980821604,0.042,3808.9,3808.8,98.95542679]
[1753980822428,0.042,3808.9,3808.8,99.41512679]
[1753980823930,0.042,3808.9,3808.8,94.37822679]
[1753980824144,0.9732,3808.9,3808.8,91.75272795]
[1753980824290,4.14862991,3808.9,3808.8,91.346]
[1753980824806,4.14862991,3808.9,3808.8,86.7496]
[1753980827930,4.14862991,3808.9,3808.8,90.8646]
[1753980829002,4.39362597,3808.9,3808.8,90.8646]
[1753980830247,4.39362597,3808.9,3808.8,86.7496]
[1753980830453,4.39362597,3808.9,3808.8,90.8646]
[1753980830931,4.63878574,3808.9,3808.8,90.8646]
[1753980831628,5.3653991,3808.9,3808.8,90.8646]
[1753980832632,5.36575214,3808.9,3808.8,90.8646]
[1753980832931,8.36575214,3808.9,3808.8,86.7496]
[1753980833131,8.36594092,3808.9,3808.8,86.7496]
[1753980833991,8.26594092,3808.9,3808.8,86.7496]
[1753980834234,8.39714092,3808.9,3808.8,86.7496]
[1753980834638,7.33002756,3808.9,3808.8,86.7496]
[1753980834937,7.33002756,3808.9,3808.8,90.8636]
[1753980835323,0.2873491,3808.9,3808.8,90.8636]
[1753980835495,2.91277901,3808.9,3808.8,91.8092]
[1753980835692,2.91277901,3808.9,3808.8,93.89540448]
[1753980835933,2.91277901,3808.9,3808.8,93.40030448]
[1753980836543,0.2873491,3808.9,3808.8,93.40030448]
[1753980836843,2.91277901,3808.9,3808.8,93.40030448]
[1753980837030,2.91277901,3808.9,3808.8,91.3141]
[1753980837334,0.2873491,3808.9,3808.8,91.8092]
[1753980838064,0.042,3808.9,3808.8,91.8092]
[1753980838275,2.66742991,3808.9,3808.8,87.6952]
[1753980838428,2.91277901,3808.9,3808.8,91.3141]
[1753980838775,2.91277901,3808.9,3808.8,90.8636]
[1753980839426,2.91277901,3808.9,3808.8,86.7496]
[1753980839632,2.91277901,3808.9,3808.8,90.8626]
[1753980840153,0.2873491,3808.9,3808.8,93.44848366]
[1753980840328,2.66742991,3808.9,3808.8,93.89898366]
[1753980840665,0.2873491,3808.9,3808.8,93.89898366]
[1753980840959,0.2873491,3808.9,3808.8,94.39408366]
[1753980841343,0.042,3808.9,3808.8,94.39408366]
[1753980842064,0.042,3808.9,3808.8,100.4607825]
[1753980842523,0.042,3808.9,3808.8,100.4617825]
[1753980843658,0.042,3808.9,3808.8,93.72328366]
[1753980843835,0.042,3808.9,3808.8,96.88968366]
[1753980844042,0.042,3808.9,3808.8,97.83528366]
[1753980844252,0.042,3808.9,3808.8,100.4607825]
[1753980848988,0.042,3808.9,3808.8,96.3487825]
[1753980849191,0.042,3808.9,3808.8,100.4597825]
[1753980852398,0.042,3808.9,3808.8,96.88768366]
[1753980852549,0.042,3808.9,3808.8,99.5131825]
[1753980852991,0.042,3808.9,3808.8,100.4587825]
[1753980854794,0.042,3808.9,3808.8,100.5899825]
[1753980855894,0.042,3808.9,3808.8,99.6433825]
[1753980857707,0.042,3808.9,3808.8,100.6101825]
[1753980859267,0.042,3808.9,3808.8,100.4789825]
[1753980859468,0.042,3808.9,3808.8,103.4789825]
[1753980859673,0.042,3808.9,3808.8,103.6101825]
[1753980861820,1e-08,3808.9,3808.8,103.6101825]
[1753980861975,0.002,3809.3,3809.2,6.06442313]
[1753980862177,0.002,3809.3,3809.2,22.89678002]
[1753980862383,0.002,3809.3,3809.2,23.02798002]
[1753980862604,0.002,3809.3,3809.2,23.99478002]
[1753980863215,1e-08,3809.3,3809.2,31.14478002]
[1753980866116,1e-08,3809.3,3809.2,24.54478002]
[1753980866285,0.04,3810.9,3809.2,24.54478002]
[1753980866286,0.04,3810.9,3809.8,2.6248097]
[1753980866485,0.04,3810.9,3809.8,22.26949645]
[1753980866706,0.04,3810.9,3809.8,23.23629645]
[1753980867021,0.04,3810.9,3809.8,20.18810818]
[1753980867217,0.04,3810.9,3809.8,20.31930818]
[1753980869437,1e-08,3809.9,3809.8,20.31930818]
[1753980869790,1e-08,3809.9,3809.8,20.86930818]
[1753980870129,0.04,3810.9,3810.8,2.62412091]
[1753980870333,0.04,3810.9,3810.8,19.48197074]
[1753980870704,0.04,3810.9,3810.8,20.44877074]
[1753980870934,0.04,3810.9,3810.8,14.65995322]
[1753980874129,0.04,3810.9,3810.8,14.85208765]
[1753980875533,0.04,3810.9,3810.8,13.88328765]
[1753980876031,0.04,3810.9,3810.8,14.85008765]
[1753980879233,1e-08,3810.9,3810.8,14.85008765]
[1753980880314,1e-08,3810.9,3810.8,14.98128765]
[1753980881036,0.3405,3811.6,3811.5,2.62363898]
[1753980881235,0.04,3811.9,3811.8,2.62343249]
[1753980881438,0.04,3811.9,3811.8,10.16363247]
[1753980881642,0.4972,3811.9,3811.8,10.29483247]
[1753980883329,0.04,3811.9,3811.8,10.29483247]
[1753980883536,0.04,3811.9,3811.8,11.58666699]
[1753980884119,0.4972,3811.9,3811.8,11.58666699]
[1753980884542,0.04,3811.9,3811.8,11.58666699]
[1753980885419,0.04,3811.9,3811.8,24.34825056]
[1753980885644,1e-08,3811.9,3811.8,24.34825056]
[1753980886243,1e-08,3811.9,3811.8,10.95356699]
[1753980886556,1e-08,3811.9,3811.8,10.48566699]
[1753980886720,0.00200001,3811.9,3811.8,14.58466699]
[1753980886922,0.00200001,3811.9,3811.8,21.73466699]
[1753980887120,0.00200001,3811.9,3811.8,22.68696699]
[1753980887340,0.00200001,3811.9,3811.8,15.04766699]
[1753980887540,0.00200001,3811.9,3811.8,14.58466699]
[1753980887921,0.48250001,3811.9,3811.8,14.58466699]
[1753980888121,0.48250001,3811.9,3811.8,10.48566699]
[1753980888354,0.48250001,3811.9,3811.8,14.58366699]
[1753980889426,0.00200001,3811.9,3811.8,14.58366699]
[1753980890026,0.00200001,3811.9,3811.8,15.53596699]
[1753980890647,0.00200001,3811.9,3811.8,14.58366699]
[1753980892032,0.82300001,3811.9,3811.8,14.58366699]
[1753980892262,0.82300001,3811.9,3811.8,7.48566699]
[1753980892461,0.82300001,3811.9,3811.8,4.8622345]
[1753980892660,0.82300001,3811.9,3811.8,11.58266699]
[1753980892863,0.82300001,3811.9,3811.8,18.58266699]
[1753980893169,0.48250001,3811.9,3811.8,11.8622345]
[1753980893344,0.48250001,3811.9,3811.8,18.58266699]
[1753980893545,0.48250001,3811.9,3811.8,15.9592345]
[1753980893741,0.48250001,3811.9,3811.8,11.8622345]
[1753980894066,0.48250001,3811.9,3811.8,15.9592345]
[1753980894234,0.48250001,3811.9,3811.8,18.58266699]
[1753980894735,0.00200001,3811.9,3811.8,19.53496699]
[1753980895467,0.00200001,3811.9,3811.8,22.53496699]
[1753980896439,0.00200001,3811.9,3811.8,17.48566699]
[1753980896647,0.00200001,3811.9,3811.8,21.58266699]
[1753980897054,0.00200001,3811.9,3811.8,22.04566699]
[1753980897253,0.002,3812.3,3812.0,5.62329485]
[1753980897479,0.002,3812.3,3812.2,2.62315723]
[1753980897973,0.002,3812.3,3812.2,6.85035723]
[1753980898146,0.4825,3812.3,3812.2,6.85035723]
[1753980899151,0.4825,3812.3,3812.2,4.2272]
[1753980900040,0.4825,3812.3,3812.2,6.85035723]
[1753980900239,0.4825,3812.3,3812.2,0.1312]
[1753980900438,1.06845607,3812.3,3812.2,4.2262]
[1753980900641,3.69154449,3812.3,3812.2,4.2262]
[1753980900874,3.69154449,3812.3,3812.2,0.1312]
[1753980901041,1.06845607,3812.3,3812.2,4.2262]
[1753980901241,3.69154449,3812.3,3812.2,4.2262]
[1753980902379,1.06845607,3812.3,3811.9,3.43719997]
[1753980902560,3.72240276,3812.2,3811.9,3.43719997]
[1753980902756,3.72240276,3812.2,3811.3,3.43719997]
[1753980902757,0.55,3812.0,3811.3,3.43719997]
[1753980903083,2.62363898,3811.5,3811.4,4.095]
[1753980903281,2.62370782,3811.4,3811.3,3.43719997]
[1753980903584,1.06661172,3811.4,3811.3,7.53219997]
[1753980904659,0.24561172,3811.4,3811.3,4.2262]
[1753980905070,0.4805,3811.4,3811.3,4.2262]
[1753980905383,0.72611172,3811.4,3811.3,4.2262]
[1753980905583,0.72611172,3811.4,3811.3,0.1312]
[1753980905879,3.69032505,3811.4,3811.3,4.094]
[1753980906545,2.62377666,3811.3,3811.2,0.1312]
[1753980906746,4.32179551,3811.3,3811.2,4.2262]
[1753980906945,4.32179551,3811.3,3811.2,4.095]
[1753980908780,0.4805,3811.3,3811.2,4.095]
[1753980908987,0.72571247,3811.3,3811.2,4.095]
[1753980909358,2.62343348,3811.8,3811.2,4.095]
[1753980909564,2.62365289,3811.5,3811.2,4.095]
[1753980909768,0.24513453,3811.4,3811.2,4.095]
[1753980909973,0.4805,3812.0,3811.3,0.9523]
[1753980910148,2.62362105,3811.6,3811.4,4.094]
[1753980910358,3.34932248,3811.5,3810.9,0.464]
[1753980910681,2.6235459,3811.7,3811.0,4.094]
[1753980910888,0.4805,3811.6,3811.0,4.094]
[1753980911304,0.4805,3811.6,3811.2,2.62380354]
[1753980911450,0.4805,3811.6,3811.3,4.094]
[1753980912000,2.62344689,3811.8,3811.3,5.0463]
[1753980912197,3.10394689,3811.8,3811.3,4.557]
[1753980912351,3.10394689,3811.8,3811.3,4.094]
[1753980912560,0.4805,3812.1,3811.4,0.9523]
[1753980912803,0.4805,3812.1,3811.5,4.094]
[1753980912804,0.24500208,3812.0,3811.5,4.094]
[1753980913108,2.86830006,3812.0,3811.5,5.0463]
[1753980913314,0.24500208,3811.9,3811.5,5.0463]
[1753980913466,3.10373973,3812.1,3811.5,5.0463]
[1753980913669,0.24497643,3812.0,3811.5,5.0463]
[1753980914020,0.24497643,3812.0,3811.5,7.18063742]
[1753980914182,0.4805,3812.0,3811.5,4.557]
[1753980914362,0.4805,3812.0,3811.5,7.18061493]
[1753980914563,0.4805,3812.0,3811.5,4.557]
[1753980914763,0.002,3812.3,3811.2,3.11313382]
[1753980914764,0.4805,3811.9,3811.2,0.4893]
[1753980915011,0.4805,3811.9,3810.9,3.43819997]
[1753980915012,0.24498304,3811.8,3811.3,7.53019997]
[1753980915165,2.62370782,3811.4,3811.3,4.093]
[1753980915365,3.44470782,3811.4,3811.3,4.093]
[1753980915781,3.10420782,3811.4,3811.3,4.093]
[1753980916003,0.4805,3811.4,3811.3,4.093]
[1753980916209,0.453,3812.0,3811.3,4.093]
[1753980916422,2.62369005,3811.5,3811.3,4.093]
[1753980916570,0.453,3811.4,3811.3,4.093]
[1753980917316,3.07670782,3811.4,3811.3,4.093]
[1753980917516,2.62378314,3811.3,3810.9,0.001]
[1753980917667,0.55,3811.8,3811.0,4.092]
[1753980918018,3.3214759,3811.7,3811.0,4.092]
[1753980918219,2.62357369,3811.6,3811.2,0.1312]
[1753980918519,0.453,3811.6,3811.3,4.092]
[1753980918665,2.62370782,3811.4,3811.3,4.092]
[1753980918864,2.62377666,3811.3,3811.2,0.1312]
[1753980919181,3.07677666,3811.3,3811.2,4.2232]
[1753980920103,3.41727666,3811.3,3811.2,4.092]
[1753980921525,3.66220505,3811.3,3811.2,4.092]
[1753980922432,4.30391516,3811.3,3811.2,4.092]
[1753980923289,3.96341516,3811.3,3811.2,4.092]
[1753980924928,4.30391516,3811.3,3811.2,4.092]
[1753980925220,3.96341516,3811.3,3811.2,4.092]
[1753980925417,2.6239832,3811.0,3810.9,0.001]
[1753980925626,2.6239832,3811.0,3810.9,4.092]
[1753980926420,0.55,3811.3,3810.9,4.092]
[1753980926591,2.6239832,3811.0,3810.9,4.092]
[1753980927339,3.0769832,3811.0,3810.9,4.092]
[1753980928036,2.6239832,3811.0,3810.9,4.092]
[1753980928242,3.32231833,3811.0,3810.9,4.092]
[1753980929103,2.86931833,3811.0,3810.9,4.092]
[1753980929303,0.24533513,3811.0,3810.9,4.092]
[1753980929649,2.86929047,3811.1,3810.9,4.092]
[1753980929955,0.24533513,3811.0,3810.9,4.092]
[1753980930702,2.86931833,3811.0,3810.9,0.001]
[1753980930928,2.86931833,3811.0,3810.9,4.091]
[1753980932443,4.82192883,3811.0,3810.9,4.091]
[1753980933239,0.24533513,3811.0,3810.9,4.091]
[1753980933440,4.20110092,3812.3,3811.1,2.62391435]
[1753980933441,0.24533513,3811.2,3811.1,2.62391435]
[1753980933606,0.24568242,3811.2,3811.1,7.63596883]
[1753980933809,3.0,3812.0,3811.3,2.62376069]
[1753980934008,3.17344581,3811.8,3811.4,4.09]
[1753980934360,0.49137211,3811.7,3811.4,5.0121]
[1753980934518,0.24568175,3811.6,3811.4,5.0121]
[1753980934720,0.24568175,3811.5,3811.4,4.09]
[1753980935225,0.24568175,3811.5,3811.4,4.2212]
[1753980935550,0.24568175,3811.5,3811.4,5.1433]
[1753980938347,0.24568175,3811.5,3810.9,0.001]
[1753980938348,2.86932073,3811.5,3810.9,0.001]
[1753980938553,0.56545553,3811.4,3811.0,4.089]
[1753980938731,2.62390472,3811.2,3811.0,4.089]
[1753980938930,0.24572712,3811.1,3811.0,4.089]
[1753980939617,2.86964147,3811.1,3811.0,4.089]
[1753980940019,2.6239832,3811.0,3810.9,0.1322]
[1753980940230,3.32271032,3811.0,3810.9,4.089]
[1753980941240,4.54734134,3811.0,3810.9,4.089]
[1753980941725,4.51454155,3811.0,3810.9,4.089]
[1753980943879,7.51454155,3811.0,3810.9,4.089]
[1753980944161,7.06154155,3811.0,3810.9,4.089]
[1753980944361,6.41971032,3811.0,3810.9,4.089]
[1753980944577,3.24572712,3811.0,3810.9,5.0111]
[1753980944870,5.86971032,3811.0,3810.9,5.0111]
[1753980945074,3.24572712,3811.0,3810.9,5.0111]
[1753980945227,2.86971032,3811.0,3810.9,5.0111]
[1753980946068,0.24572712,3811.0,3810.9,5.0111]
[1753980946244,0.24572712,3811.0,3810.9,5.52533]
[1753980946452,2.86971032,3811.0,3810.9,5.1423]
[1753980946771,2.86971032,3811.0,3810.9,4.2192]
[1753980947281,2.6239832,3811.0,3810.9,4.2192]
[1753980947761,3.6293832,3811.0,3810.9,4.088]
[1753980947968,3.7605832,3811.0,3810.9,0.001]
[1753980948173,7.53083157,3811.0,3810.9,0.001]
[1753980948347,7.49803178,3811.0,3810.9,0.001]
[1753980948768,16.29606104,3811.0,3810.9,0.001]
[1753980949156,20.38306104,3811.0,3810.9,0.001]
[1753980949756,11.48503178,3811.0,3810.9,0.001]
[1753980950280,7.39903178,3811.0,3810.9,0.001]
[1753980950484,5.7551832,3811.0,3810.9,0.001]
[1753980950684,5.6239832,3811.0,3810.9,0.937]
[1753980951183,6.0793832,3811.0,3810.9,0.001]
[1753980951362,6.6293832,3811.0,3810.9,0.001]
[1753980951558,7.56783166,3811.0,3810.9,0.001]
[1753980953145,11.99433166,3811.0,3810.9,0.001]
[1753980953353,11.65383166,3811.0,3810.9,0.001]
[1753980954203,20.45186092,3811.0,3810.9,0.001]
[1753980954410,20.79236092,3811.0,3810.9,0.001]
[1753980954759,20.45186092,3811.0,3810.9,0.001]
[1753980956647,11.19843166,3811.0,3810.9,0.001]
[1753980957887,7.11243166,3811.0,3810.9,0.001]
[1753980958068,11.19743166,3811.0,3810.9,0.001]
[1753980959092,11.65283166,3811.0,3810.9,0.001]
[1753980959598,20.79136092,3811.0,3810.9,0.001]
[1753980959970,20.79136092,3811.0,3810.9,1e-08]
[1753980961090,3.17453414,3810.2,3810.1,0.04]
[1753980961269,10.57698755,3810.2,3810.1,0.04]
[1753980961472,10.70818755,3810.2,3810.1,0.04]
[1753980965960,10.70718755,3810.2,3810.1,0.04]
[1753980968565,14.97270117,3810.0,3809.9,0.001]
[1753980968767,19.18690117,3810.0,3809.9,0.001]
[1753980969067,19.18690117,3810.0,3809.5,1e-08]
[1753980969068,3.1749475,3809.6,3809.5,1e-08]
[1753980969267,10.42195934,3809.6,3809.5,1e-08]
[1753980969486,10.8445475,3809.6,3809.5,1e-08]
[1753980969663,11.1850475,3809.6,3809.5,1e-08]
[1753980970000,12.98611299,3809.6,3809.5,1e-08]
[1753980970468,12.64561299,3809.6,3809.5,1e-08]
[1753980971808,12.19021299,3809.6,3809.5,1e-08]
[1753980972778,12.98611299,3809.6,3809.5,1e-08]
[1753980973189,6.17542991,3808.9,3808.8,78.99783492]
[1753980973507,10.71382991,3808.9,3808.8,68.30799437]
[1753980973713,10.71382991,3808.9,3808.8,61.11664535]
[1753980974005,3.17570565,3808.5,3808.4,0.001]
[1753980974309,8.17165977,3808.5,3808.4,0.001]
[1753980974483,8.13883845,3808.5,3808.4,0.001]
[1753980975011,8.13883845,3808.5,3808.4,0.4567]
[1753980975310,1.4301328,3808.5,3808.4,0.937]
[1753980975490,0.55,3808.5,3808.4,0.937]
[1753980975898,2.62538019,3809.0,3808.4,0.937]
[1753980975899,1.56109795,3809.5,3808.4,0.937]
[1753980976212,0.55,3809.0,3808.5,0.9189]
[1753980976374,0.55,3809.0,3808.6,0.9189]
[1753980976573,0.55,3809.0,3808.7,0.9189]
[1753980976789,0.55,3808.8,3808.4,0.001]
[1753980977183,2.65838889,3808.7,3808.4,0.001]
[1753980977387,2.65838889,3808.7,3808.5,0.4688]
[1753980977603,0.58281959,3808.7,3808.6,0.9189]
[1753980977901,0.55,3808.7,3808.6,0.9189]
[1753980978305,3.17556777,3808.7,3808.6,0.9189]
[1753980978692,0.55,3808.7,3808.6,0.9189]
[1753980979290,3.17556777,3808.7,3808.6,0.9189]
[1753980979799,0.55,3808.7,3808.6,0.9189]
[1753980980012,0.55,3808.7,3808.4,0.001]
[1753980980321,0.55,3808.7,3808.6,0.9189]
[1753980980676,2.6252023,3809.3,3808.6,0.9189]
[1753980980878,0.55,3809.0,3808.7,0.9189]
[1753980981113,3.55,3809.0,3808.8,0.9189]
[1753980981296,3.55,3809.0,3808.4,2.6267683]
[1753980981505,0.55,3809.0,3808.9,0.9189]
[1753980981817,3.55,3809.1,3808.9,0.9189]
[1753980982218,3.55,3809.1,3809.0,0.9189]
[1753980982382,6.17529206,3809.1,3809.0,0.9189]
[1753980983077,6.30649206,3809.1,3809.0,0.9189]
[1753980984220,6.30649206,3809.1,3808.5,0.1312]
[1753980984221,2.62547629,3808.9,3808.5,0.1312]
[1753980984528,0.03281873,3808.8,3808.6,0.9189]
[1753980984724,2.62538615,3809.0,3808.7,0.9189]
[1753980984883,2.62538615,3809.0,3808.5,0.1312]
[1753980985083,2.62538615,3809.0,3808.8,0.9189]
[1753980985320,3.17538615,3809.0,3808.9,0.9189]
[1753980985826,3.17536098,3809.0,3808.9,0.9189]
[1753980987021,3.17536098,3809.0,3808.7,0.4501]
[1753980987222,2.62543984,3808.9,3808.7,0.4501]
[1753980987524,2.62543984,3808.9,3808.7,0.9189]
[1753980988019,3.20820419,3809.0,3808.7,0.9189]
[1753980988230,0.55,3809.0,3808.8,0.9189]
[1753980988387,0.55,3809.0,3808.5,0.1312]
[1753980988584,0.55,3809.0,3808.9,0.9189]